[Event "US Masters 2024"]
[Site "Charlotte"]
[Date "2024.11.30"]
[Round "6.8"]
[White "Nyzhnyk, Illya"]
[Black "Druska, Juraj"]
[Result "1-0"]
[ECO "A13"]
[WhiteElo "2576"]
[BlackElo "2433"]
[Annotator "TA"]
[PlyCount "89"]
[EventDate "2024.09.23"]
[EventType "swiss"]
[EventCountry "USA"]
[SourceTitle "playchess.com"]
[Source "ChessBase"]
[SourceQuality "1"]
[TimeControl "5400+30"]

{[%evp 10,89,8,0,8,4,29,14,26,13,9,10,0,8,14,42,33,20,30,24,25,27,118,121,135,122,116,125,116,116,125,120,120,132,136,110,117,110,147,161,147,149,187,192,190,156,227,227,227,227,227,221,220,197,225,225,433,423,426,426,426,311,426,426,426,419,812,419,368,368,368,368,368,331,29966,29968,29968,29969,29986,29987,29987,29988]} 1. Nf3 {[%emt 0:00:03]} d5 {[%emt 0:09:41]} 2. c4 {[%emt 0:00:11]} e6 {[%emt 0:00:22]} 3. e3 {[%emt 0:00:09]} Nf6 {[%emt 0:00:12]} 4. b3 {[%emt 0:00:06]} Bd6 {[%emt 0:02:02]} 5. Bb2 {[%emt 0:00:06]} O-O {[%emt 0:00:10]} 6. Be2 {[%emt 0:00:05]} Qe7 {[%emt 0:18:53]} 7. O-O {[%emt 0:05:27]} dxc4 {[%emt 0:03:47]} 8. bxc4 {[%emt 0:00:14]} c5 {[%emt 0:00:10] The position is equal.} 9. d4 {[%emt 0:02:12]} Rd8 {[%emt 0:00:52]} 10. Nc3 {[%emt 0:02:40]} cxd4 {[%emt 0:01:36]} 11. exd4 {[%emt 0:00:05]} Ba3 {[%emt 0:00:08]} 12. Bxa3 {[%emt 0:00:31]} Qxa3 {[%emt 0:00:08]} 13. Qb3 {[%emt 0:00:11]} Qxb3 {[%emt 0:25:25]} 14. axb3 {[%emt 0:01:42]} Nc6 {[%emt 0:00:12]} 15. Rfd1 {[%emt 0:00:09]} b6 {[%emt 0:00:06] White now steadily converts the win.} (15... a6 $11) 16. Ne5 $16 {[%emt 0:00:30]} Nxd4 {[%emt 0:00:12] [#]} 17. Rxd4 $1 {[%emt 0:00:17][%mdl 512]} Rxd4 {[%emt 0:00:01]} 18. Bf3 {[%emt 0:00:06] Against Bb7} Rb8 {[%emt 0:00:05] ...Bb7 would now be deadly.} 19. Nc6 $1 {[%emt 0:00:16][%cal Be5c6,Bc6b8,Bb8d7][%mdl 32] White has more active pieces. A dynamic duo of knights.} Rd3 {[%emt 0:00:06]} 20. Nxb8 {[%emt 0:00:28]} Rxc3 {[%emt 0:00:02]} 21. Rd1 {[%emt 0:13:19] Wards off Bd7. Threatening mate with Rd8+.} g5 {[%emt 0:08:21][%cal Og8g7]} (21... Rxb3 22. Rd8+) 22. h3 {[%emt 0:00:24]} Kg7 {[%emt 0:00:09][%cal Oe6e5]} (22... Rxb3 $2 23. Rd8+ Kg7 24. Rxc8 $18) 23. Rd8 {[%emt 0:00:04]} Bd7 {[%emt 0:15:36]} 24. Nxd7 {[%emt 0:00:15]} Rd3 {[%emt 0:00:03]} 25. Bc6 {[%emt 0:00:05]} a6 {[%emt 0:00:11]} 26. f3 {[%emt 0:17:12]} h5 {[%emt 0:00:47]} 27. g4 {[%emt 0:01:54]} b5 {[%emt 0:03:27]} (27... h4 $16 28. Kf2 Rd6) 28. c5 $18 {[%emt 0:01:40][%cal Bc4c5,Bc5c6][%mdl 32]} (28. cxb5 axb5 29. Nxf6 (29. Bxb5 Rxb3 30. Nxf6 Kxf6 $18) 29... Rxd8 30. Nxh5+ Kf8 31. Bxb5 Ke7 $18) 28... hxg4 {[%emt 0:00:30]} 29. hxg4 {[%emt 0:00:06]} Rxb3 {[%emt 0:00:15]} 30. Nxf6 {[%emt 0:09:03]} Kxf6 {[%emt 0:00:01][%mdl 4096] Endgame. KRB-KR} 31. Be4 {[%emt 0:00:09]} Rc3 {[%emt 0:00:09]} 32. c6 {[%emt 0:00:03] Threatens to win with Rd7.} b4 $2 {[%emt 0:05:03]} (32... a5 {is a better defense.} 33. Rb8 Rc5) 33. Ra8 {[%emt 0:04:27]} Ke5 {[%emt 0:00:09]} 34. Rxa6 {[%emt 0:00:05]} Rc5 {[%emt 0:00:05]} 35. Kf2 {[%emt 0:06:02]} f5 {[%emt 0:00:01]} 36. Bd3 {[%emt 0:00:13]} Kd4 {[%emt 0:00:26]} 37. Ke2 {[%emt 0:00:08]} Kc3 {[%emt 0:03:01]} (37... Ke5 $142 38. Rb6 Kd6 39. c7+ (39. Rxb4 Re5+ 40. Kf2 Kxc6 $18) 39... Kxc7 40. Rxe6 (40. Rxb4 Re5+ 41. Kd2 Kc6 $18) 40... fxg4 41. fxg4 Ra5) 38. Ra1 {[%emt 0:10:15]} (38. gxf5 exf5 39. c7 Rxc7 40. Bxf5 b3 $18) 38... Kb2 {[%emt 0:00:46] Wards off Rc1} (38... Rxc6 $2 {is the wrong capture.} 39. Rc1+ (39. gxf5 Kd4 $18) 39... Kd4 40. Rxc6 $18) (38... Re5+ 39. Be4 Kb3 40. Rc1 Kb2 41. Rc2+ Kb3 42. c7 Rxe4+ 43. fxe4 Kxc2 44. c8=Q+ (44. c8=B f4 $18)) 39. Rb1+ {[%emt 0:00:05]} Ka3 {[%emt 0:00:01]} 40. Kd2 {[%emt 0:00:09] White wants to mate with Rc1.} Rxc6 {[%emt 0:02:40]} 41. Bc2 {[%emt 0:00:05] Kc1 would kill now.} Rc3 $2 {[%emt 0:02:09] [#]} (41... Rc4 $18 42. gxf5 exf5 43. Bxf5 Rd4+ 44. Ke3 Rd5) 42. f4 $1 {[%emt 0:00:04] White mates.} gxf4 {[%emt 0:02:43] [#]} 43. g5 $1 {[%emt 0:00:06]} ({Weaker is} 43. gxf5 exf5 44. Bxf5 f3 $14) 43... Ka2 {[%emt 0:00:43]} 44. Rxb4 {[%emt 0:00:18]} Rg3 {[%emt 0:00:03]} 45. Kc1 {[%emt 0:00:06] Weighted Error Value: White=0.15 (very precise) /Black=0.32.  Mistake:       	---       	Black=5      Inaccurate:     	White=1     	Black=1      OK:         	White=19    	Black=13     Best:        	White=2     	Black=3      Strong:       	White=2     	---        Brilliant:      	White=1     	---} 1-0

[Event "US Masters 2024"]
[Site "Charlotte"]
[Date "2024.11.30"]
[Round "6.9"]
[White "Panchanathan, Magesh Chandran"]
[Black "Burke, John M"]
[Result "1/2-1/2"]
[ECO "D77"]
[WhiteElo "2461"]
[BlackElo "2573"]
[Annotator "TA"]
[PlyCount "87"]
[EventDate "2024.09.23"]
[EventType "swiss"]
[EventCountry "USA"]
[SourceTitle "playchess.com"]
[Source "ChessBase"]
[SourceQuality "1"]
[TimeControl "5400+30"]

{[%evp 21,87,0,25,-47,-37,-31,-38,-48,-13,-42,-38,-60,-15,-41,0,0,0,-80,-73,-67,-14,-9,-16,-8,-14,-25,-37,-60,-69,-95,-52,-39,-60,-50,-69,-56,-57,-79,-64,-124,-107,-109,-15,-8,30,-46,-32,-67,-18,-19,0,0,0,0,-4,-4,0,-102,0,0,0,0,0,0,0,0,0,0]} 1. Nf3 {[%emt 0:09:14]} d5 {[%emt 0:00:11]} 2. g3 {[%emt 0:00:34]} g6 {[%emt 0:00:07]} 3. Bg2 {[%emt 0:00:10]} Bg7 {[%emt 0:00:05]} 4. d4 {[%emt 0:00:04]} Nf6 {[%emt 0:00:06]} 5. O-O {[%emt 0:00:05]} O-O {[%emt 0:00:03]} 6. c4 {[%emt 0:00:06]} dxc4 {[%emt 0:00:12]} 7. Na3 {[%emt 0:00:06]} c3 {[%emt 0:00:04]} 8. bxc3 {[%emt 0:00:04]} c5 {[%emt 0:00:04]} 9. e3 {[%emt 0:00:25]} Nc6 {[%emt 0:00:40]} 10. Bb2 {[%emt 0:00:18]} Bf5 {[%emt 0:01:22]} 11. Qe2 {[%emt 0:01:11]} e5 {[%emt 0:02:05][%cal Be7e5,Be5e4][%mdl 32]} 12. Rfd1 {[%emt 0:06:49]} (12. dxe5 Bd3 13. Qd1 Bxf1 14. exf6 Bxg2 15. fxg7 Qxd1+ 16. Rxd1 Bxf3 $17) (12. Nxe5 $11 Nxe5 13. e4 (13. dxe5 Bd3 $11) 13... Nxe4 (13... Bg4 14. f3 $11) 14. dxe5) 12... e4 $1 $15 {[%emt 0:01:57]} 13. Ne5 {[%emt 0:01:58] Prevents Bg4} Nxe5 {[%emt 0:11:37]} 14. dxe5 {[%emt 0:00:11] Black is slightly better.} Nd7 {[%emt 0:00:01]} 15. e6 {[%emt 0:04:04]} Bxe6 {[%emt 0:00:08]} 16. Bxe4 {[%emt 0:00:05]} Qa5 {[%emt 0:07:35][%cal Oa8d8]} 17. Qb5 {[%emt 0:22:22]} Bxc3 {[%emt 0:06:00]} 18. Qxa5 {[%emt 0:01:00]} Bxa5 {[%emt 0:00:04]} 19. Nc4 {[%emt 0:00:52]} Bxc4 $17 {[%emt 0:01:41]} 20. Rxd7 {[%emt 0:00:06]} Rab8 {[%emt 0:18:54]} (20... Rfe8 $1 $15 21. Bf3 Rab8) 21. Rc1 $132 {[%emt 0:05:56][%mdl 2048] White is not holding back} Be6 {[%emt 0:03:59]} 22. Re7 {[%emt 0:00:42]} (22. Rxb7 $2 {too greedy.} Rxb7 23. Bxb7 Rb8 $19 (23... Bxa2 24. Ra1 $11)) 22... Bb6 {[%emt 0:10:10]} 23. a4 {[%emt 0:09:16][%cal Ob2c3]} Bb3 {[%emt 0:01:31]} 24. h4 {[%emt 0:08:43]} Bxa4 {[%emt 0:03:10]} 25. h5 {[%emt 0:00:06] Hoping for hxg6.} Rbe8 {[%emt 0:08:41]} ({But not} 25... gxh5 $6 26. Re5 f6 27. Rxh5 $11) 26. hxg6 {[%emt 0:00:56]} hxg6 {[%emt 0:00:04]} ({Worse is} 26... Rxe7 27. gxh7#) 27. Rxe8 {[%emt 0:00:05]} Rxe8 {[%emt 0:00:02]} 28. Bxb7 {[%emt 0:00:05]} Kf8 {[%emt 0:23:57]} 29. e4 {[%emt 0:11:26]} Ke7 {[%emt 0:00:00] Against Bf6+} 30. g4 {[%emt 0:04:07]} (30. Bd5 $15) 30... Kd6 {[%emt 0:00:00]} 31. f4 {[%emt 0:00:30] [#]} c4+ {[%emt 0:00:00]} (31... Bb3 $1 $17 {Threatens to win with ...Kc7.} 32. e5+ Kc7) 32. Kg2 {[%emt 0:00:17]} Kc5 {[%emt 0:00:00]} 33. Kf3 {[%emt 0:00:30]} (33. Bd5 $11 Bb5 34. Bf6) 33... Bb3 $15 {[%emt 0:00:00]} 34. g5 {[%emt 0:00:30]} Ba5 {[%emt 0:00:00]} (34... Rd8 $15 {deserves consideration.} 35. Bd5 Rxd5 36. exd5 Kxd5) 35. Ke3 {[%emt 0:02:40]} Rd8 {[%emt 0:00:00]} 36. Bd5 {[%emt 0:03:58]} Rd7 {[%emt 0:00:00]} 37. Bd4+ {[%emt 0:00:05]} Kb5 {[%emt 0:00:00]} 38. Rh1 {[%emt 0:00:17]} Kb4 {[%emt 0:00:00]} 39. Rh8 {[%emt 0:02:25] [#]} (39. Kd2 $1 $11 {was the only way to keep the balance.}) 39... c3 {[%emt 0:00:25]} ({Black should play} 39... Bc7 $1 $17 {...c3 is the strong threat.} 40. Rh1 a5) 40. Rb8+ $11 {[%emt 0:01:53] The position is equal.} Bb6 $1 {[%emt 0:00:03]} 41. Bxb6 {[%emt 0:00:42]} Bxd5 {[%emt 0:00:05]} 42. exd5 {[%emt 0:00:09]} axb6 {[%emt 0:00:03]} 43. Rxb6+ {[%emt 0:00:03]} Kc5 {[%emt 0:00:17]} 44. Rc6+ {[%emt 0:00:05] Weighted Error Value: White=0.27 (precise) /Black=0.23 (precise) .  Mistake:       	White=4     	Black=4      Inaccurate:     	White=3     	Black=4      OK:         	White=11    	Black=8      Best:        	White=6     	Black=3      Strong:       	---       	Black=2} 1/2-1/2

[Event "US Masters 2024"]
[Site "Charlotte"]
[Date "2024.11.30"]
[Round "6.10"]
[White "Han, Johnathan"]
[Black "Matviishen, Viktor"]
[Result "1/2-1/2"]
[ECO "B96"]
[WhiteElo "2330"]
[BlackElo "2566"]
[Annotator "TA"]
[PlyCount "111"]
[EventDate "2024.09.23"]
[EventType "swiss"]
[EventCountry "USA"]
[SourceTitle "playchess.com"]
[Source "ChessBase"]
[SourceQuality "1"]
[TimeControl "5400+30"]

{[%evp 17,111,27,19,28,31,29,43,0,45,43,38,35,35,36,49,34,68,53,50,58,52,61,55,62,59,95,78,55,50,62,73,61,59,58,63,27,28,31,47,8,8,6,6,10,14,16,14,14,14,16,63,11,181,15,14,14,10,9,20,20,20,22,22,20,405,358,615,615,613,363,370,366,363,57,51,0,73,75,58,20,347,337,399,20,20,20,20,17,22,18,22,17,18,17,18,0]} 1. e4 {[%emt 0:02:59]} c5 {[%emt 0:31:49]} 2. Nf3 {[%emt 0:00:49]} d6 {[%emt 0:00:06]} 3. d4 {[%emt 0:00:10]} cxd4 {[%emt 0:00:04]} 4. Nxd4 {[%emt 0:00:07]} Nf6 {[%emt 0:00:09]} 5. Nc3 {[%emt 0:00:07]} a6 {[%emt 0:00:06]} 6. Bg5 {[%emt 0:00:21]} e6 {[%emt 0:00:18]} 7. f4 {[%emt 0:00:32]} Nbd7 {[%emt 0:00:06]} 8. Qe2 {[%emt 0:01:20]} Qc7 {[%emt 0:00:25]} 9. O-O-O {[%emt 0:00:45]} b5 {[%emt 0:00:25]} 10. a3 {[%emt 0:01:00]} Rb8 {[%emt 0:00:17]} 11. g4 {[%emt 0:02:29][%cal Oc3d5]} Be7 {[%emt 0:01:22]} 12. Bh4 {[%emt 0:02:01] White is slightly better.} h6 {[%emt 0:01:46]} (12... Nxe4 $5 13. Nxe4 (13. Nxe6 fxe6 14. Nxe4 Bxh4 $14) 13... Bxh4 $16) 13. Bg2 {[%emt 0:01:34][%cal Oe4e5]} b4 {[%emt 0:00:33]} 14. axb4 {[%emt 0:00:26]} Rxb4 {[%emt 0:00:04]} 15. Be1 {[%emt 0:00:59][%cal Oc3d5]} Qb6 {[%emt 0:01:21][%csl LRb2,LRd4]} 16. Bf2 {[%emt 0:00:27][%cal Od4e6]} Rxb2 {[%emt 0:00:21] [#]} 17. Ndb5 $1 {[%emt 0:00:12]} Qa5 {[%emt 0:00:17]} 18. Kxb2 {[%emt 0:00:14][%cal Oe2c4]} Qb4+ {[%emt 0:00:10]} 19. Kc1 $1 {[%emt 0:00:10][%cal Bb2c1,Bc1d2,Bd2e2][%mdl 32]} axb5 {[%emt 0:00:03]} 20. Kd2 {[%emt 0:00:20][%cal Od1a1] Active counter play!} g5 {[%emt 0:07:32]} 21. Rb1 {[%emt 0:05:28]} ({Don't play} 21. Qxb5 Qxb5 22. Nxb5 gxf4 $11) 21... Qc4 {[%emt 0:01:30]} 22. Nxb5 {[%emt 0:10:01]} Qxe2+ {[%emt 0:00:18]} 23. Kxe2 {[%emt 0:00:02]} gxf4 {[%emt 0:01:46]} 24. h3 {[%emt 0:03:39]} Ne5 {[%emt 0:07:25]} 25. Rhd1 {[%emt 0:04:47]} O-O {[%emt 0:25:41]} 26. Nxd6 {[%emt 0:08:15]} Ba6+ {[%emt 0:01:35]} 27. Ke1 $1 {[%emt 0:00:14]} Rd8 {[%emt 0:08:55][%cal Of4f3]} 28. Rb6 {[%emt 0:10:24]} f3 $1 {[%emt 0:00:07]} 29. Rxa6 {[%emt 0:00:27]} fxg2 {[%emt 0:00:04]} 30. Ke2 {[%emt 0:02:32]} Rxd6 {[%emt 0:02:15]} (30... Kh7 {feels hotter.} 31. Bg1 Bxd6 32. Raxd6 Rc8) 31. Raxd6 {[%emt 0:02:14]} Bxd6 {[%emt 0:00:04]} 32. Rxd6 {[%emt 0:00:05]} Nxe4 $11 {[%emt 0:00:03][%mdl 4096] Endgame. KRB-KNN} 33. Rd8+ {[%emt 0:05:07]} Kh7 {[%emt 0:02:41]} (33... Kg7 $1 $11 {should be considered.}) 34. Bg1 {[%emt 0:04:56]} (34. Bd4 $14) 34... Kg6 $2 {[%emt 0:04:08]} (34... Ng5 $1 $11) 35. Ke3 $2 {[%emt 0:05:40]} (35. Bh2 $18) 35... Ng5 {[%emt 0:01:45] A dynamic duo of knights.} 36. Kf2 {[%emt 0:00:21]} Nxh3+ {[%emt 0:00:12]} 37. Kxg2 {[%emt 0:00:02]} Nf4+ {[%emt 0:01:24]} 38. Kf1 {[%emt 0:01:16]} Nxg4 {[%emt 0:00:53]} 39. c4 {[%emt 0:00:11][%cal Bc2c4,Bc4c5,Bc5c6][%mdl 32]} Kf6 {[%emt 0:01:15]} 40. Rd7 {[%emt 0:02:00][%mdl 1024] Black must now prevent c5. White has compensation.} e5 $2 {[%emt 0:00:37][%mdl 8192]} (40... Ne5 $11 41. Rd4 Nfg6) 41. c5 $18 {[%emt 0:00:23]} Ke6 $2 {[%emt 0:00:04]} (41... h5 42. c6 Ne6) 42. c6 {[%emt 0:00:07]} Nf6 {[%emt 0:00:21]} 43. Rd8 {[%emt 0:05:16] And now c7 would win.} N4d5 {[%emt 0:00:41]} 44. Bc5 {[%emt 0:00:21]} h5 {[%emt 0:00:47]} 45. Bd6 $2 {[%emt 0:00:23]} (45. Rd6+ $18 Kf5 46. Bb4) 45... Ne8 $1 $14 {[%emt 0:00:21]} 46. Bc5 {[%emt 0:08:11]} ({Of course not} 46. Rxe8+ Kxd6 47. Kg1 f6 $11) ({White should try} 46. Ba3 $14 Ndc7 47. Ke2) 46... Nec7 {[%emt 0:00:01] [#]} (46... Nef6 $1 $11 47. Rd6+ Kf5) 47. Rd6+ $1 $16 {[%emt 0:00:19]} Kf5 {[%emt 0:00:00]} 48. Ba7 {[%emt 0:00:10] Strongly threatening Bb8.} Ke4 $2 {[%emt 0:00:52][%mdl 8192]} (48... Nb4 $1 $11) 49. Rd7 $18 {[%emt 0:01:16]} Na6 {[%emt 0:01:07]} 50. Rb7 $2 {[%emt 0:03:01]} ({White should play} 50. Rxf7 $18 Kd3 51. Bc5) 50... Kf5 $1 $11 {[%emt 0:00:48] The position is equal.} 51. Rxf7+ {[%emt 0:05:15]} Ke6 $1 {[%emt 0:00:01]} 52. Rd7 {[%emt 0:00:19]} h4 {[%emt 0:01:01]} 53. Rd8 {[%emt 0:00:28]} h3 {[%emt 0:00:30]} 54. Kg1 {[%emt 0:03:06]} Ne7 {[%emt 0:00:15]} 55. Rh8 {[%emt 0:03:01]} Nxc6 {[%emt 0:00:08]} 56. Rxh3 {[%emt 0:00:15] Weighted Error Value: White=0.37/Black=0.32.  Loses game:     	---       	Black=3      Missed win:     	White=3     	---        Mistake:       	White=2     	Black=3      Inaccurate:     	White=4     	Black=2      OK:         	White=14    	Black=17     Best:        	White=6     	Black=6      Strong:       	White=3     	Black=4      Brilliant:      	White=1     	---} 1/2-1/2

[Event "US Masters 2024"]
[Site "Charlotte"]
[Date "2024.11.30"]
[Round "6.11"]
[White "Kevlishvili, Robby"]
[Black "Heimann, Mark"]
[Result "1/2-1/2"]
[ECO "C07"]
[WhiteElo "2556"]
[BlackElo "2459"]
[Annotator "TA"]
[PlyCount "133"]
[EventDate "2024.09.23"]
[EventType "swiss"]
[EventCountry "USA"]
[SourceTitle "playchess.com"]
[Source "ChessBase"]
[SourceQuality "1"]
[TimeControl "5400+30"]

{[%evp 9,133,7,10,11,5,5,4,0,0,0,0,-4,0,-38,0,-21,-15,-13,-8,0,-12,-23,-10,-19,-18,-24,0,0,-8,0,0,-10,-18,-22,0,0,0,0,0,0,0,0,0,-3,0,-4,1,8,6,-19,0,0,8,0,0,1,22,0,20,19,20,13,16,24,20,18,26,18,20,0,0,0,0,0,0,0,66,4,35,24,35,34,43,29,39,17,47,38,45,36,67,71,111,117,119,79,93,80,103,72,154,166,127,84,177,142,136,145,150,137,210,122,104,113,111,6,7,0,0,0,0,0,58,0,0,0]} 1. e4 {[%emt 0:04:45]} e6 {[%emt 0:00:06]} 2. d4 {[%emt 0:00:24]} d5 {[%emt 0:00:05]} 3. Nd2 {[%emt 0:00:26]} c5 {[%emt 0:00:07]} 4. exd5 {[%emt 0:00:08]} Qxd5 {[%emt 0:00:04]} 5. dxc5 {[%emt 0:00:04]} Nf6 {[%emt 0:00:42]} 6. Ngf3 {[%emt 0:02:20]} Qxc5 {[%emt 0:00:18]} 7. Bd3 {[%emt 0:00:33]} Be7 {[%emt 0:01:58]} 8. O-O {[%emt 0:00:31]} O-O {[%emt 0:00:07]} 9. Qe2 {[%emt 0:01:47]} Nbd7 {[%emt 0:05:56]} 10. c4 {[%emt 0:05:58]} b6 {[%emt 0:05:33]} 11. a3 {[%emt 0:03:51]} Qc7 {[%emt 0:01:58]} 12. b3 {[%emt 0:04:58]} Bb7 {[%emt 0:00:35]} 13. Bb2 {[%emt 0:01:40]} Qc6 {[%emt 0:04:00]} 14. Rfe1 {[%emt 0:02:17]} Rfd8 {[%emt 0:05:21]} 15. Qf1 {[%emt 0:07:28]} a5 {[%emt 0:04:19]} 16. Nd4 {[%emt 0:01:13]} Qc7 {[%emt 0:01:47]} 17. N2f3 {[%emt 0:02:36]} Nc5 {[%emt 0:06:44] Threatening ...Bxf3.} 18. Bc2 $1 {[%emt 0:00:06]} Nce4 {[%emt 0:00:33]} 19. Nb5 {[%emt 0:04:17]} Qf4 {[%emt 0:07:54]} 20. Bc1 {[%emt 0:06:26] Prevents Nd2.} Qb8 {[%emt 0:00:54]} 21. h3 {[%emt 0:06:21]} Bc5 {[%emt 0:07:26]} 22. Be3 {[%emt 0:00:21]} Qc8 {[%emt 0:08:12]} 23. Qe2 {[%emt 0:04:51]} Bxe3 {[%emt 0:14:11]} 24. Qxe3 {[%emt 0:00:06]} a4 {[%emt 0:00:20]} 25. bxa4 {[%emt 0:14:15]} Qc5 {[%emt 0:05:52]} 26. Rab1 {[%emt 0:00:42]} Qxe3 {[%emt 0:04:00]} 27. Rxe3 {[%emt 0:00:05]} Nd2 {[%emt 0:00:10]} 28. Nxd2 {[%emt 0:00:22]} Rxd2 {[%emt 0:00:03]} 29. Bd1 {[%emt 0:06:00]} Nd7 {[%emt 0:02:20][%mdl 1024] Black has compensation.} 30. Nc3 {[%emt 0:02:13][%cal Oc4c5]} Ba6 {[%emt 0:00:36]} 31. Rb4 {[%emt 0:10:00]} (31. Ne4 $5 Rd4 $8 32. Be2 $14) 31... Rc8 {[%emt 0:00:14]} 32. Be2 {[%emt 0:00:43]} Kf8 {[%emt 0:01:52]} 33. Kf1 {[%emt 0:01:34]} Rd6 {[%emt 0:04:28]} 34. Ke1 {[%emt 0:00:29]} Rdc6 {[%emt 0:00:45][%cal Ra6c4]} 35. Nb5 {[%emt 0:00:57]} Rc5 {[%emt 0:00:14]} 36. Nd6 {[%emt 0:01:48]} R8c6 {[%emt 0:00:59]} 37. Ne4 {[%emt 0:00:29]} Ra5 {[%emt 0:00:19]} 38. Nd2 {[%emt 0:00:14]} Nc5 {[%emt 0:03:01]} 39. Bd1 {[%emt 0:02:59][%cal Be2d1,Bd1c2,Bc2d3][%mdl 32]} Ke7 {[%emt 0:00:32]} 40. f4 {[%emt 0:00:36]} Kd8 {[%emt 0:00:58]} 41. Bc2 {[%emt 0:00:41]} h6 {[%emt 0:01:50]} 42. h4 {[%emt 0:00:23]} Nd7 {[%emt 0:00:43]} (42... Rd6 $11) 43. g3 {[%emt 0:00:48]} ({White should try} 43. Be4 $14 Rc7 44. Bd3) 43... Rac5 {[%emt 0:01:22][%cal Ra6c4]} 44. Bd3 {[%emt 0:00:11] [#] Nb3 would now be deadly.} Rc8 {[%emt 0:01:36]} 45. Be2 {[%emt 0:00:05]} R5c6 {[%emt 0:00:33]} 46. Rd3 {[%emt 0:00:52]} Ke7 {[%emt 0:00:08]} 47. Nf3 {[%emt 0:00:57]} f6 {[%emt 0:00:44]} (47... Rxc4 $2 {loses.} 48. Rxd7+ Kxd7 49. Ne5+ Kd8 50. Bxc4 $18 (50. Nxc4 Bxc4 51. Rxc4 Rb8 $18)) 48. Nd4 {[%emt 0:01:30]} Rd6 {[%emt 0:00:41][%cal Od7c5]} 49. Nb3 {[%emt 0:01:09] Black must now prevent Rxd6.} Rdc6 {[%emt 0:00:59]} 50. Re3 {[%emt 0:00:17] aiming for Nd4.} e5 {[%emt 0:00:41][%cal Oe7f8]} ({Reject} 50... Bxc4 51. Nd4 Rc5 52. Bxc4 Rxc4 53. Rxe6+ Kf8 54. Rd6) 51. Nd4 {[%emt 0:00:17]} Rc5 {[%emt 0:00:10][%cal Og7g6]} 52. Nf5+ {[%emt 0:00:50]} Kf8 {[%emt 0:00:03]} 53. Nd6 {[%emt 0:00:22]} R8c7 {[%emt 0:00:15] Black is weak on the light squares} 54. Bg4 {[%emt 0:00:11]} R5c6 {[%emt 0:00:16]} (54... Ke7 $142 55. Bxd7 Kxd7 56. fxe5 (56. Rxb6 Bxc4 57. fxe5 fxe5 $11) 56... R7c6) 55. Nb5 $16 {[%emt 0:00:53] White is much more active.} Bxb5 {[%emt 0:00:04]} 56. axb5 {[%emt 0:00:18]} Rc5 {[%emt 0:00:10]} (56... Rd6 $16) 57. Bxd7 {[%emt 0:01:02]} Rxd7 {[%emt 0:00:01]} 58. fxe5 {[%emt 0:00:06]} fxe5 $18 {[%emt 0:00:03][%mdl 4096] Endgame. KRR-KRR} 59. Ra4 {[%emt 0:00:04] Repels Ra7} Rd4 {[%emt 0:01:08] [#]} (59... Ke7 $16 {was called for.} 60. Rc3 Rdc7) 60. Ra6 {[%emt 0:01:09]} (60. Rc3 $1 $18) 60... Rdxc4 $16 {[%emt 0:00:22]} 61. Rxb6 {[%emt 0:00:08]} e4 {[%emt 0:00:10]} 62. Kf1 {[%emt 0:00:47]} (62. g4 $16) 62... Rc1+ $11 {[%emt 0:01:07]} 63. Kf2 {[%emt 0:00:34]} R1c2+ $1 {[%emt 0:00:38]} 64. Kf1 {[%emt 0:01:22][%cal Oe3e2]} Rb2 {[%emt 0:00:33]} 65. Rxe4 {[%emt 0:00:37]} Rc1+ {[%emt 0:01:44]} 66. Re1 {[%emt 0:00:04]} Rcc2 $1 {[%emt 0:00:01]} 67. a4 {[%emt 0:00:29] Black defended with fortune.   Weighted Error Value: White=0.10 (very precise) /Black=0.12 (very precise) .  Mistake:       	White=3     	Black=4      Inaccurate:     	White=5     	Black=4      OK:         	White=18    	Black=28     Best:        	White=2     	Black=1      Strong:       	White=1     	Black=2} 1/2-1/2